fUST/lending_fUST_20240227
["ID","MTS","AMOUNT","RATE_DAILY","PERIOD"]
[315397301,1709010633778,-500.0,0.00019178,2]
[315397303,1709010633787,-1548.08,0.00019178,2]
[315397304,1709010633798,-500.0,0.00019178,2]
[315397306,1709010633808,-524.20214721,0.00019178,2]
[315397308,1709010633820,-500.0,0.00019178,2]
[315397310,1709010633831,-500.0,0.00019178,2]
[315397312,1709010633844,-500.0,0.00019178,2]
[315397315,1709010633855,-500.0,0.00019178,2]
[315397317,1709010633866,-1218.54,0.00019178,2]
[315397318,1709010633877,-500.0,0.00019178,2]
[315397320,1709010633887,-500.0,0.00019178,2]
[315397323,1709010633897,-500.0,0.00019178,2]
[315397325,1709010633908,-14771.65,0.00019178,2]
[315397327,1709010633919,-442.51153843,0.00019178,2]
[315397329,1709010633929,-500.0,0.00019178,2]
[315397331,1709010633940,-500.0,0.00019178,2]
[315397332,1709010633951,-500.0,0.00019178,2]
[315397334,1709010633963,-500.0,0.00019178,2]
[315397337,1709010633974,-500.0,0.00019178,2]
[315397338,1709010633983,-735.27,0.00019178,2]
[315397340,1709010633992,-500.0,0.00019178,2]
[315397342,1709010634001,-766.55,0.00019178,2]
[315397344,1709010634010,-500.67273146,0.00019178,2]
[315397346,1709010634019,-501.91934061,0.00019178,2]
[315397348,1709010634028,-499.6293671,0.00019178,2]
[315397350,1709010634037,-500.0,0.00019178,2]
[315397352,1709010634045,-502.37139835,0.00019178,2]
[315397354,1709010634055,-500.29968996,0.00019178,2]
[315397356,1709010634064,-500.0,0.00019178,2]
[315397358,1709010634073,-503.80757751,0.00019178,2]
[315397360,1709010634082,-500.0,0.00019178,2]
[315397362,1709010634091,-501.47435516,0.00019178,2]
[315397364,1709010634100,-500.0,0.00019178,2]
[315397366,1709010634109,-771.92,0.00019178,2]
[315397368,1709010634118,-500.0,0.00019178,2]
[315397370,1709010634127,-501.35547942,0.00019178,2]
[315397372,1709010634136,-782.66,0.00019178,2]
[315397374,1709010634145,-500.0,0.00019178,2]
[315397376,1709010634154,-173.06562377,0.00019178,2]
[315397379,1709010634167,-326.93437623,0.00019178,2]
[315397380,1709010634177,-215.55473199,0.00019178,2]
[315397383,1709010634193,-547.53425189,0.00019178,2]
[315397466,1709010638660,-7545.89101612,0.00019178,2]
[315397467,1709010638670,-500.0,0.00019178,2]
[315397468,1709010638680,-950.82,0.00019178,2]
[315397469,1709010638689,-501.59504109,0.00019178,2]
[315397470,1709010638699,-500.0,0.00019178,2]
[315397471,1709010638708,-500.0,0.00019178,2]
[315397472,1709010638718,-500.0,0.00019178,2]
[315397473,1709010638727,-1281.3,0.00019178,2]
[315397474,1709010638736,-16461.22,0.00019178,2]
[315397475,1709010638746,-500.0,0.00019178,2]
[315397476,1709010638755,-500.0,0.00019178,2]
[315397477,1709010638764,-3200.6,0.00019178,2]
[315397478,1709010638775,-500.0,0.00019178,2]
[315397479,1709010638785,-734.37,0.00019178,2]
[315397480,1709010638795,-441.27105207,0.00019178,2]
[315397481,1709010638804,-500.0,0.00019178,2]
[315397482,1709010638813,-1003.08489069,0.00019178,2]
[315397483,1709010638822,-1192.96,0.00019178,2]
[315397484,1709010638831,-194.15938752,0.00019178,2]
[315397485,1709010638840,-1349.58,0.00019178,2]
[315397486,1709010638850,-260.17021376,0.00019178,2]
[315397487,1709010638860,-500.0,0.00019178,2]
[315397488,1709010638869,-500.0,0.00019178,2]
[315397489,1709010638878,-480.61212038,0.00019178,2]
[315397490,1709010638888,-500.0,0.00019178,2]
[315397491,1709010638897,-2325.12200678,0.00019178,2]
[315397492,1709010638909,-1196.70773582,0.00019178,2]
[315397493,1709010638920,-2761.7202574,0.00019178,2]
[315397494,1709010638929,-500.0,0.00019178,2]
[315397495,1709010638939,-500.0,0.00019178,2]
[315397496,1709010638948,-1747.84,0.00019178,2]
[315397497,1709010638957,-3336.56,0.00019178,2]
[315397498,1709010638966,-500.0,0.00019178,2]
[315397499,1709010638975,-2413.44,0.00019178,2]
[315397500,1709010638984,-500.0,0.00019178,2]
[315397501,1709010638993,-633.26,0.00019178,2]
[315397502,1709010639002,-500.0,0.00019178,2]
[315397503,1709010639012,-2168.07,0.00019178,2]
[315397504,1709010639022,-500.0,0.00019178,2]
[315397505,1709010639031,-500.67580525,0.00019178,2]
[315397506,1709010639040,-500.0,0.00019178,2]
[315397507,1709010639048,-3311.33,0.00019178,2]
[315397508,1709010639058,-744.88,0.00019178,2]
[315397509,1709010639068,-443.10422866,0.00019178,2]
[315397510,1709010639077,-500.0,0.00019178,2]
[315397511,1709010639086,-500.0,0.00019178,2]
[315397512,1709010639095,-500.0,0.00019178,2]
[315397513,1709010639104,-500.0,0.00019178,2]
[315397514,1709010639113,-500.0,0.00019178,2]
[315397515,1709010639122,-500.0,0.00019178,2]
[315397516,1709010639131,-500.0,0.00019178,2]
[315397517,1709010639141,-500.0,0.00019178,2]
[315397518,1709010639150,-320.86018493,0.00019178,2]
[315397519,1709010639159,-500.0,0.00019178,2]
[315397520,1709010639168,-500.0,0.00019178,2]
[315397521,1709010639177,-2483.87,0.00019178,2]
[315397522,1709010639187,-1710.37,0.00019178,2]
[315397523,1709010639198,-500.80513381,0.00019178,2]
[315397524,1709010639206,-265.34682252,0.00019178,2]
[315397525,1709010639215,-500.0,0.00019178,2]
[315397526,1709010639224,-500.0,0.00019178,2]
[315397527,1709010639233,-694.82180753,0.00019178,2]
[315397528,1709010639243,-166.878769,0.00019178,2]
[315397529,1709010639251,-158.964339,0.00019178,2]
[315397530,1709010639260,-166.666666,0.00019178,2]
[315397531,1709010639270,-500.0,0.00019232,2]
[315397532,1709010639279,-352.01506984,0.00019287,2]
[315397533,1709010639288,-881.45008729,0.00019352,2]
[315397534,1709010639298,-736.36,0.00019395,2]
[315397535,1709010639307,-736.36,0.00019451,2]
[315397536,1709010639316,-736.36,0.00019451,2]
[315397537,1709010639325,-736.36,0.00019451,2]
[315397538,1709010639334,-1519.40144155,0.00019451,2]
[315397539,1709010639344,-500.0,0.00019452,2]
[315397540,1709010639353,-283.63069126,0.00019452,2]
[315397541,1709010639363,-500.0,0.00019452,2]
[315397542,1709010639372,-542.79,0.00019452,2]
[315397543,1709010639381,-500.0,0.00019452,2]
[315397544,1709010639390,-500.0,0.00019452,2]
[315397545,1709010639400,-500.0,0.00019452,2]
[315397546,1709010639409,-500.0,0.00019452,2]
[315397547,1709010639418,-500.0,0.00019452,2]
[315397548,1709010639427,-500.0,0.00019452,2]
[315397549,1709010639437,-500.0,0.00019452,2]
[315397550,1709010639446,-500.0,0.00019452,2]
[315397551,1709010639456,-500.0,0.00019452,2]
[315397552,1709010639465,-500.0,0.00019452,2]
[315397553,1709010639475,-1217.51,0.00019452,2]
[315397554,1709010639484,-1033.93,0.00019452,2]
[315397555,1709010639493,-592.5,0.00019452,2]
[315397556,1709010639503,-502.56998248,0.00019452,2]
[315397557,1709010639512,-500.0,0.00019452,2]
[315397558,1709010639522,-503.62709028,0.00019452,2]
[315397559,1709010639532,-500.0,0.00019452,2]
[315397560,1709010639541,-602.67375131,0.00019452,2]
[315397561,1709010639550,-500.10196764,0.00019452,2]
[315397562,1709010639559,-255.55957885,0.00019452,2]
[315397563,1709010639568,-500.0,0.00019452,2]
[315397564,1709010639578,-290.43863408,0.00019452,2]
[315397565,1709010639588,-500.0,0.00019452,2]
[315397566,1709010639598,-2830.74,0.00019452,2]
[315397567,1709010639607,-507.6639879,0.00019452,2]
[315397568,1709010639617,-1094.46,0.00019452,2]
[315397569,1709010639626,-500.0,0.00019452,2]
[315397570,1709010639635,-500.0,0.00019452,2]
[315397571,1709010639645,-1804.89,0.00019452,2]
[315397572,1709010639656,-500.0,0.00019452,2]
[315397573,1709010639666,-500.0,0.00019452,2]
[315397574,1709010639675,-500.0,0.00019452,2]
[315397575,1709010639684,-500.0,0.00019452,2]
[315397576,1709010639694,-500.0,0.00019452,2]
[315397577,1709010639703,-500.0,0.00019452,2]
[315397578,1709010639712,-500.0,0.00019452,2]
[315397579,1709010639721,-500.0,0.00019452,2]
[315397580,1709010639730,-500.0,0.00019452,2]
[315397581,1709010639739,-1658.28,0.00019452,2]
[315397582,1709010639748,-500.0,0.00019452,2]
[315397583,1709010639759,-500.0,0.00019452,2]
[315397584,1709010639769,-503.97375337,0.00019452,2]
[315397585,1709010639780,-1388.35,0.00019452,2]
[315397586,1709010639789,-500.0,0.00019452,2]
[315397587,1709010639798,-500.0,0.00019452,2]
[315397588,1709010639807,-500.0,0.00019452,2]
[315397589,1709010639817,-504.14013285,0.00019452,2]
[315397590,1709010639826,-500.0,0.00019452,2]
[315397591,1709010639835,-1156.01,0.00019452,2]
[315397592,1709010639845,-500.0,0.00019452,2]
[315397593,1709010639856,-1548.08,0.00019452,2]
[315397594,1709010639866,-500.0,0.00019452,2]
[315397595,1709010639876,-186.42839332,0.00019452,2]
[315397596,1709010639885,-500.0,0.00019452,2]
[315397597,1709010639894,-1218.54,0.00019452,2]
[315397598,1709010639904,-599.4018927,0.00019452,2]
[315397599,1709010639912,-14771.65,0.00019452,2]
[315397600,1709010639921,-500.0,0.00019452,2]
[315397601,1709010639930,-500.0,0.00019452,2]
[315397602,1709010639939,-500.0,0.00019452,2]
[315397603,1709010639948,-500.0,0.00019452,2]
[315397604,1709010639957,-392.00976435,0.00019452,2]
[315397605,1709010639966,-735.27,0.00019452,2]
[315397606,1709010639975,-500.0,0.00019452,2]
[315397607,1709010639984,-766.55,0.00019452,2]
[315397608,1709010639993,-500.0,0.00019452,2]
[315397609,1709010640003,-614.34914342,0.00019452,2]
[315397610,1709010640012,-317.207108,0.00019452,2]
[315397611,1709010640023,-500.0,0.00019452,2]
[315397612,1709010640033,-771.92,0.00019452,2]
[315397613,1709010640041,-500.0,0.00019452,2]
[315397614,1709010640051,-782.66,0.00019452,2]
[315397615,1709010640060,-500.0,0.00019452,2]
[315397616,1709010640070,-500.0,0.00019452,2]
[315397617,1709010640079,-8308.98,0.00019452,2]
[315397618,1709010640088,-500.0,0.00019452,2]
[315397619,1709010640097,-950.82,0.00019452,2]
[315397620,1709010640106,-500.0,0.00019452,2]
[315397621,1709010640115,-500.0,0.00019452,2]
[315397622,1709010640125,-500.0,0.00019452,2]
[315397623,1709010640134,-1281.3,0.00019452,2]
[315397624,1709010640143,-16461.22,0.00019452,2]
[315397625,1709010640152,-501.52053868,0.00019452,2]
[315397626,1709010640162,-500.0,0.00019452,2]
[315397627,1709010640171,-3200.6,0.00019452,2]
[315397628,1709010640180,-398.21029264,0.00019452,2]
[315397629,1709010640189,-734.37,0.00019452,2]
[315397630,1709010640201,-268.55333724,0.00019452,2]
[315397631,1709010640211,-1192.96,0.00019452,2]
[315397632,1709010640220,-1349.58,0.00019452,2]
[315397633,1709010640229,-183.13816209,0.00019452,2]
[315397634,1709010640238,-503.20835864,0.00019452,2]
[315397635,1709010640247,-6283.55,0.00019452,2]
[315397636,1709010640256,-500.0,0.00019452,2]
[315397637,1709010640266,-500.0,0.00019452,2]
[315397638,1709010640277,-3336.56,0.00019452,2]
[315397639,1709010640286,-500.0,0.00019452,2]
[315397640,1709010640296,-1747.84,0.00019452,2]
[315397641,1709010640305,-2413.44,0.00019452,2]
[315397642,1709010640315,-633.26,0.00019452,2]
[315397643,1709010640324,-500.0,0.00019452,2]
[315397644,1709010640333,-2168.07,0.00019452,2]
[315397645,1709010640342,-3311.33,0.00019452,2]
[315397646,1709010640351,-744.88,0.00019452,2]
[315397647,1709010640360,-384.82319129,0.00019452,2]
[315397648,1709010640370,-500.0,0.00019452,2]
[315397649,1709010640379,-500.0,0.00019452,2]
[315397650,1709010640389,-502.32182453,0.00019452,2]
[315397651,1709010640398,-500.0,0.00019452,2]
[315397652,1709010640407,-500.0,0.00019452,2]
[315397653,1709010640416,-500.0,0.00019452,2]
[315397654,1709010640425,-500.0,0.00019452,2]
[315397655,1709010640434,-2483.87,0.00019452,2]
[315397656,1709010640444,-1710.37,0.00019452,2]
[315397657,1709010640453,-226.05511992,0.00019452,2]
[315397658,1709010640462,-500.0,0.00019452,2]
[315397659,1709010640472,-153.0,0.000195,2]
[315397660,1709010640481,-345.628901,0.000195,2]
[315397661,1709010640490,-166.666666,0.00019627,2]
[315397662,1709010640500,-881.45008725,0.00019694,2]
[315397663,1709010640509,-736.36,0.00019725,2]
[315397664,1709010640520,-736.36,0.00019725,2]
[315397665,1709010640531,-736.36,0.00019725,2]
[315397666,1709010640541,-500.0,0.00019726,2]
[315397667,1709010640550,-638.12008785,0.00019726,2]
[315397668,1709010640559,-542.79,0.00019726,2]
[315397669,1709010640569,-500.0,0.00019726,2]
[315397670,1709010640578,-500.0,0.00019726,2]
[315397671,1709010640587,-500.0,0.00019726,2]
[315397672,1709010640596,-500.0,0.00019726,2]
[315397673,1709010640605,-500.0,0.00019726,2]
[315397674,1709010640615,-567.61733427,0.00019726,2]
[315397675,1709010640624,-500.0,0.00019726,2]
[315397676,1709010640633,-500.0,0.00019726,2]
[315397677,1709010640643,-1217.51,0.00019726,2]
[315397678,1709010640652,-1033.93,0.00019726,2]
[315397679,1709010640661,-592.5,0.00019726,2]
[315397680,1709010640671,-500.0,0.00019726,2]
[315397681,1709010640680,-500.0,0.00019726,2]
[315397682,1709010640690,-500.0,0.00019726,2]
[315397683,1709010640699,-500.0,0.00019726,2]
[315397684,1709010640708,-2830.74,0.00019726,2]
[315397685,1709010640718,-1094.46,0.00019726,2]
[315397686,1709010640727,-500.0,0.00019726,2]
[315397687,1709010640736,-500.0,0.00019726,2]
[315397688,1709010640745,-1804.89,0.00019726,2]
[315397689,1709010640755,-500.0,0.00019726,2]
[315397690,1709010640764,-500.0,0.00019726,2]
[315397691,1709010640860,-500.0,0.00019726,2]
[315397692,1709010640869,-500.0,0.00019726,2]
[315397693,1709010640879,-500.0,0.00019726,2]
[315397694,1709010640888,-500.0,0.00019726,2]
[315397695,1709010640897,-500.0,0.00019726,2]
[315397697,1709010640907,-500.0,0.00019726,2]
[315397699,1709010640916,-500.0,0.00019726,2]
[315397701,1709010640925,-1658.28,0.00019726,2]
[315397702,1709010640934,-500.0,0.00019726,2]
[315397703,1709010640943,-174.83088943,0.00019726,2]
[315397704,1709010640952,-1388.35,0.00019726,2]
[315397705,1709010640961,-500.0,0.00019726,2]
[315397706,1709010640971,-500.0,0.00019726,2]
[315397707,1709010640980,-500.0,0.00019726,2]
[315397708,1709010640989,-1156.01,0.00019726,2]
[315397709,1709010640998,-500.0,0.00019726,2]
[315397710,1709010641007,-1548.08,0.00019726,2]
[315397711,1709010641017,-500.0,0.00019726,2]
[315397712,1709010641027,-1218.54,0.00019726,2]
[315397713,1709010641037,-14771.65,0.00019726,2]
[315397714,1709010641046,-500.0,0.00019726,2]
[315397715,1709010641055,-500.0,0.00019726,2]
[315397716,1709010641064,-504.27548558,0.00019726,2]
[315397717,1709010641073,-735.27,0.00019726,2]
[315397718,1709010641082,-500.0,0.00019726,2]
[315397719,1709010641091,-766.55,0.00019726,2]
[315397720,1709010641100,-771.92,0.00019726,2]
[315397721,1709010641109,-313.49363118,0.00019726,2]
[315397722,1709010641118,-782.66,0.00019726,2]
[315397723,1709010641127,-500.0,0.00019726,2]
[315397724,1709010641136,-8308.98,0.00019726,2]
[315397725,1709010641145,-503.18608457,0.00019726,2]
[315397726,1709010641154,-950.82,0.00019726,2]
[315397727,1709010641163,-500.0,0.00019726,2]
[315397728,1709010641172,-500.0,0.00019726,2]
[315397729,1709010641182,-500.0,0.00019726,2]
[315397730,1709010641191,-1281.3,0.00019726,2]
[315397731,1709010641203,-16461.22,0.00019726,2]
[315397732,1709010641212,-527.39049889,0.00019726,2]
[315397733,1709010641221,-3200.6,0.00019726,2]
[315397734,1709010641230,-734.37,0.00019726,2]
[315397735,1709010641240,-1192.96,0.00019726,2]
[315397736,1709010641251,-1349.58,0.00019726,2]
[315397737,1709010641259,-6283.55,0.00019726,2]
[315397738,1709010641269,-500.0,0.00019726,2]
[315397739,1709010641279,-500.0,0.00019726,2]
[315397740,1709010641287,-3336.56,0.00019726,2]
[315397741,1709010641296,-500.0,0.00019726,2]
[315397742,1709010641305,-1747.84,0.00019726,2]
[315397743,1709010641315,-2413.44,0.00019726,2]
[315397744,1709010641323,-633.26,0.00019726,2]
[315397745,1709010641333,-500.0,0.00019726,2]
[315397746,1709010641342,-2168.07,0.00019726,2]
[315397747,1709010641351,-3311.33,0.00019726,2]
[315397748,1709010641360,-744.88,0.00019726,2]
[315397749,1709010641370,-500.0,0.00019726,2]
[315397750,1709010641379,-500.0,0.00019726,2]
[315397751,1709010641388,-500.0,0.00019726,2]
[315397752,1709010641397,-503.60079056,0.00019726,2]
[315397753,1709010641406,-2483.87,0.00019726,2]
[315397754,1709010641416,-1710.37,0.00019726,2]
[315397755,1709010641426,-500.0,0.00019726,2]
[315397756,1709010641435,-153.0,0.00019836,2]
[315397757,1709010641445,-736.36,0.00019998,2]
[315397758,1709010641454,-736.36,0.00019999,2]
[315397759,1709010641464,-736.36,0.00019999,2]
[315397760,1709010641473,-14102.98568691,0.0002,2]
[315397761,1709010641483,-500.0,0.0002,2]
[315397762,1709010641492,-542.79,0.0002,2]
[315397763,1709010641501,-500.0,0.0002,2]
[315397764,1709010641510,-257.70486655,0.0002,2]
[315397765,1709010641519,-500.0,0.0002,2]
[315397766,1709010641529,-500.0,0.0002,2]
[315397767,1709010641538,-500.0,0.0002,2]
[315397768,1709010641547,-500.0,0.0002,2]
[315397769,1709010641557,-1217.51,0.0002,2]
[315397770,1709010641566,-200.0,0.0002,2]
[315397771,1709010641575,-1033.93,0.0002,2]
[315397772,1709010641584,-592.5,0.0002,2]
[315397773,1709010641596,-500.0,0.0002,2]
[315397774,1709010641605,-151.69718814,0.0002,2]
[315397775,1709010641614,-500.0,0.0002,2]
[315397776,1709010641623,-632.64477132,0.0002,2]
[315397777,1709010641632,-500.0,0.0002,2]
[315397778,1709010641642,-2830.74,0.0002,2]
[315397779,1709010641651,-1094.46,0.0002,2]
[315397780,1709010641660,-601.93171131,0.0002,2]
[315397781,1709010641669,-500.0,0.0002,2]
[315397782,1709010641679,-1804.89,0.0002,2]
[315397783,1709010641688,-500.0,0.0002,2]
[315397784,1709010641697,-500.0,0.0002,2]
[315397785,1709010641706,-500.0,0.0002,2]
[315397786,1709010641715,-500.0,0.0002,2]
[315397787,1709010641725,-500.0,0.0002,2]
[315397788,1709010641734,-500.0,0.0002,2]
[315397789,1709010641743,-500.0,0.0002,2]
[315397790,1709010641752,-500.0,0.0002,2]
[315397791,1709010641761,-1658.28,0.0002,2]
[315397792,1709010641771,-500.0,0.0002,2]
[315397793,1709010641781,-1388.35,0.0002,2]
[315397794,1709010641790,-500.0,0.0002,2]
[315397795,1709010641799,-500.0,0.0002,2]
[315397796,1709010641808,-500.0,0.0002,2]
[315397797,1709010641817,-1156.01,0.0002,2]
[315397798,1709010641826,-1548.08,0.0002,2]
[315397799,1709010641835,-509.88522936,0.0002,2]
[315397800,1709010641844,-1218.54,0.0002,2]
[315397801,1709010641854,-14771.65,0.0002,2]
[315397802,1709010641863,-500.0,0.0002,2]
[315397803,1709010641872,-626.5345166,0.0002,2]
[315397804,1709010641882,-735.27,0.0002,2]
[315397805,1709010641896,-500.0,0.0002,2]
[315397806,1709010641909,-766.55,0.0002,2]
[315397807,1709010641921,-771.92,0.0002,2]
[315397808,1709010641935,-782.66,0.0002,2]
[315397809,1709010641945,-500.0,0.0002,2]
[315397810,1709010641956,-8308.98,0.0002,2]
[315397811,1709010641970,-1572.0,0.0002,2]
[315397812,1709010641983,-950.82,0.0002,2]
[315397813,1709010641998,-500.0,0.0002,2]
[315397814,1709010642011,-506.05612809,0.0002,2]
[315397815,1709010642025,-505.26790129,0.0002,2]
[315397816,1709010642037,-1281.3,0.0002,2]
[315397817,1709010642049,-16461.22,0.0002,2]
[315397818,1709010642061,-3200.6,0.0002,2]
[315397819,1709010642070,-734.37,0.0002,2]
[315397820,1709010642081,-1192.96,0.0002,2]
[315397821,1709010642093,-1349.58,0.0002,2]
[315397822,1709010642104,-6283.55,0.0002,2]
[315397823,1709010642116,-500.0,0.0002,2]
[315397824,1709010642127,-3336.56,0.0002,2]
[315397825,1709010642138,-500.0,0.0002,2]
[315397826,1709010642150,-1747.84,0.0002,2]
[315397827,1709010642162,-2413.44,0.0002,2]
[315397828,1709010642176,-633.26,0.0002,2]
[315397829,1709010642189,-500.0,0.0002,2]
[315397830,1709010642202,-2168.07,0.0002,2]
[315397831,1709010642217,-3311.33,0.0002,2]
[315397832,1709010642230,-744.88,0.0002,2]
[315397833,1709010642242,-500.0,0.0002,2]
[315397834,1709010642254,-500.0,0.0002,2]
[315397835,1709010642265,-2483.87,0.0002,2]
[315397836,1709010642278,-1710.37,0.0002,2]
[315397837,1709010642289,-500.0,0.0002,2]
[315397838,1709010642301,-881.45008725,0.00020037,2]
[315397839,1709010642314,-166.666666,0.00020076,2]
[315397840,1709010642326,-175.5,0.000201,2]
[315397841,1709010642340,-960.89299484,0.00020168,2]
[315397842,1709010642353,-1823.09535832,0.00020173,2]
[315397843,1709010642367,-306.0,0.00020192,2]
[315397844,1709010642380,-153.0,0.00020192,2]
[315397845,1709010642392,-153.0,0.00020192,2]
[315397846,1709010642405,-153.0,0.00020192,2]
[315397847,1709010642415,-153.0,0.00020192,2]
[315397848,1709010642425,-153.0,0.00020192,2]
[315397849,1709010642436,-153.0,0.00020192,2]
[315397850,1709010642446,-153.0,0.00020192,2]
[315397851,1709010642457,-306.0,0.00020192,2]
[315397852,1709010642469,-153.0,0.00020192,2]
[315397853,1709010642482,-200.6117409,0.00020192,2]
[315397854,1709010642496,-153.0,0.00020192,2]
[315397855,1709010642508,-153.0,0.00020192,2]
[315397856,1709010642521,-153.0,0.00020192,2]
[315397857,1709010642535,-153.0,0.00020192,2]
[315397858,1709010642546,-153.0,0.00020192,2]
[315397859,1709010642556,-200.6117409,0.00020192,2]
[315397860,1709010642567,-200.6117409,0.00020192,2]
[315397861,1709010642578,-153.0,0.00020192,2]
[315397862,1709010642588,-200.6117409,0.00020192,2]
[315397863,1709010642599,-153.0,0.00020192,2]
[315397864,1709010642610,-200.6117409,0.00020192,2]
[315397865,1709010642622,-200.6117409,0.00020192,2]
[315397866,1709010642634,-153.0,0.00020192,2]
[315397867,1709010642644,-200.6117409,0.00020192,2]
[315397868,1709010642656,-200.6117409,0.00020192,2]
[315397869,1709010642667,-153.0,0.00020192,2]
[315397870,1709010642679,-1823.09535831,0.00020254,2]
[315397871,1709010642691,-736.36,0.00020272,2]
[315397872,1709010642704,-736.36,0.00020272,2]
[315397873,1709010642716,-736.36,0.00020272,2]
[315397874,1709010642727,-500.0,0.00020273,2]
[315397875,1709010642739,-542.79,0.00020273,2]
[315397876,1709010642750,-500.0,0.00020273,2]
[315397877,1709010642761,-500.0,0.00020273,2]
[315397878,1709010642772,-389.45398342,0.00020273,2]
[315397879,1709010642784,-500.0,0.00020273,2]
[315397880,1709010642794,-259.39048891,0.00020273,2]
[315397881,1709010642805,-1217.51,0.00020273,2]
[315397882,1709010642816,-1033.93,0.00020273,2]
[315397883,1709010642826,-592.5,0.00020273,2]
[315397884,1709010642836,-500.0,0.00020273,2]
[315397885,1709010642846,-505.50069185,0.00020273,2]
[315397886,1709010642856,-500.0,0.00020273,2]
[315397887,1709010642867,-2830.74,0.00020273,2]
[315397888,1709010642878,-1094.46,0.00020273,2]
[315397889,1709010642889,-500.0,0.00020273,2]
[315397890,1709010642899,-1804.89,0.00020273,2]
[315397891,1709010642910,-500.0,0.00020273,2]
[315397892,1709010642921,-500.0,0.00020273,2]
[315397893,1709010642931,-500.0,0.00020273,2]
[315397894,1709010642941,-500.0,0.00020273,2]
[315397895,1709010642952,-500.0,0.00020273,2]
[315397896,1709010642962,-500.0,0.00020273,2]
[315397897,1709010642972,-500.0,0.00020273,2]
[315397898,1709010642983,-1658.28,0.00020273,2]
[315397899,1709010642993,-403.67154212,0.00020273,2]
[315397900,1709010643004,-1388.35,0.00020273,2]
[315397901,1709010643015,-500.0,0.00020273,2]
[315397902,1709010643026,-500.0,0.00020273,2]
[315397903,1709010643036,-500.0,0.00020273,2]
[315397904,1709010643047,-1156.01,0.00020273,2]
[315397905,1709010643058,-1548.08,0.00020273,2]
[315397906,1709010643068,-1218.54,0.00020273,2]
[315397907,1709010643079,-14771.65,0.00020273,2]
[315397908,1709010643090,-500.0,0.00020273,2]
[315397909,1709010643100,-735.27,0.00020273,2]
[315397910,1709010643111,-500.0,0.00020273,2]
[315397911,1709010643121,-766.55,0.00020273,2]
[315397912,1709010643132,-771.92,0.00020273,2]
[315397914,1709010643143,-782.66,0.00020273,2]
[315397921,1709010643278,-500.0,0.00020273,2]
[315397923,1709010643296,-8308.98,0.00020273,2]
[315397925,1709010643307,-950.82,0.00020273,2]
[315397927,1709010643317,-611.56698539,0.00020273,2]
[315397929,1709010643326,-1281.3,0.00020273,2]
[315397931,1709010643336,-16461.22,0.00020273,2]
[315397934,1709010643346,-3200.6,0.00020273,2]
[315397936,1709010643356,-734.37,0.00020273,2]
[315397937,1709010643366,-1192.96,0.00020273,2]
[315397938,1709010643376,-1349.58,0.00020273,2]
[315397939,1709010643386,-6283.55,0.00020273,2]
[315397941,1709010643396,-500.0,0.00020273,2]
[315397944,1709010643405,-3336.56,0.00020273,2]